Cogmind - Beta 17.1 @@@ ROGUE MODE // 2026.09.05 @ 02:57:05 Player: KURIIRI Result: Self-destructed Performance ------------- Evolutions (2) 1000 Regions Visited (3) 600 Robots Destroyed (50) 250 Value Destroyed (1518) 1518 Prototype IDs (15) 300 Alien Tech Used (0) 0 Bonus (6026) 6026 TOTAL SCORE: 9694 Bonus ------- Prayed to X0-1V1 5000 Major X0-1V1 Interference 1100 Friendly Fire -74 Cogmind --------- Core Integrity 275/480 Matter 150/150 Energy 776/1250 System Corruption 0% Temperature Danger (411) Movement Treading (200) Ox1 Location -8/Materials Parts ------- > --- POWER (1) -------- Ion Engine > --- PROPULSION (3) --- Light Treads > --- UTILITY (3) ------ (None) > --- WEAPON (4) ------- Subdweller Beam Cannon Subdweller Beam Cannon > --- INVENTORY (5) ---- Meta Core Light Treads Medium Matter Pod (37) X0-1V1's Piety Tracker Multitool Peak State ------------ > --- POWER ------------ Ion Engine > --- PROPULSION ------- Light Treads Improved Treads > --- UTILITY ---------- Recalibrator X0-1V1's Piety Tracker > --- WEAPON ----------- Subdweller Beam Cannon Subdweller Beam Cannon > --- INVENTORY -------- Meta Core Light Treads Light Treads Subdweller Beam Cannon Multitool [Rating: 26] Favorites ----------- Power Ion Engine Engine Ion Engine Propulsion Light Treads Treads Light Treads Leg Aluminum Leg Utility Large Storage Unit Device Tractor Beam Storage Large Storage Unit Protection Scrap Shield Weapon Subdweller Beam Cannon Energy Cannon Subdweller Beam Cannon Ballistic Gun Assault Rifle Launcher Grenade Launcher Build | -11 -10 -10 -8 ------- Run | Yrd Mat Sub Mat Slots Evolved 4 | . . . 4 Power . | . . . . Propulsion 1 | . . . 1 Utility 1 | . . . 1 Weapon 2 | . . . 2 Parts Attached 23 | 1 10 10 2 Power 1 | . . 1 . Engine 1 | . . 1 . Core . | . . . . Reactor . | . . . . Propulsion 6 | . 4 2 . Treads 6 | . 4 2 . Leg . | . . . . Wheel . | . . . . Hover . | . . . . Flight . | . . . . Utility 9 | 1 3 4 1 Device 7 | 1 2 3 1 Storage 1 | . 1 . . Processor . | . . . . Hackware . | . . . . Protection 1 | . . 1 . Artifact . | . . . . Weapon 7 | . 3 3 1 Energy Gun . | . . . . Energy Cannon 4 | . . 3 1 Ballistic Gun 1 | . 1 . . Ballistic Cannon . | . . . . Launcher 2 | . 2 . . Special Weapon . | . . . . Impact Weapon . | . . . . Slashing Weapon . | . . . . Piercing Weapon . | . . . . Special Melee Weapon . | . . . . Unidentified Prototypes 1 | . 1 . . Parts Lost 10 | . 1 4 5 Power 1 | . . 1 . Propulsion 3 | . . 1 2 Utility 4 | . 1 1 2 Weapon 2 | . . 1 1 Highest Loss Streak 3 | . 1 2 3 To Critical Strikes . | . . . . Average Backups 7 | 6 7 7 4 Power . | 1 1 . . Propulsion 2 | 4 3 2 1 Utility 1 | . . 1 1 Weapon 2 | 1 2 2 . Tool/Special . | . . . . Unused Backups 18 | . 5 9 4 Power 2 | . 1 1 . Propulsion 4 | . 2 2 . Utility 4 | . 1 1 2 Weapon 6 | . 1 5 . Tool/Special 2 | . . . 2 Average Slot Usage (%) 90 | . 99 86 69 Engine 13 | . 14 14 9 Treads 27 | . 27 27 24 Device 7 | . 13 3 4 Storage 8 | . 14 6 . Protection 3 | . . 6 5 Energy Cannon 15 | . . 25 25 Ballistic Gun 3 | . 8 . . Launcher 8 | . 19 2 . Peak Build Rating 26 | 7 20 26 21 Average Rating 10 | 6 7 12 17 On Entrance 11 | 6 7 20 13 Avg Prop Armor Cover (%) 9 | . . . 9 Naked Turns . | . . . . Heaviest Build 50 | 14 32 42 50 Greatest Support 63 | 20 40 43 63 Greatest Overweight (x) 1 | . . 1 1 Average Overweight (x) . | . . . . Largest Inventory Capacity 15 | 8 15 15 5 Average Capacity 9 | 8 10 9 5 Most Carried 15 | 6 10 15 5 Average Carried 7 | 6 7 7 4 Final Capacity 15 | 8 15 5 5 Final Carried 10 | 6 10 5 5 Class Distribution -------------------- 71% | Mutant 26% | Subdweller-Mutant Dominant Class ---------------- Mutant | -10/Materials Mutant | -10/Subcaves Mutant | -8/Materials Resources | -11 -10 -10 -8 ----------- Run | Yrd Mat Sub Mat Matter Collected 1105 | 230 460 373 42 Remotely 412 | . 412 . . Salvage Created 1435 | 114 678 472 171 Parts 98 | 3 57 33 5 Haulers Intercepted 1 | . 1 . . Recyclers Shooed 1 | . 1 . . Parts Field Recycled . | . . . . Retrieved Matter . | . . . . Parts Self-Destructed 11 | . . 11 . Prevented . | . . . . Parts Restored 4 | . . 4 . Broken 4 | . . 4 . Kills | -11 -10 -10 -8 ------- Run | Yrd Mat Sub Mat Combat Hostiles Destroyed 37 | . 18 15 4 Melee 1 | . . . 1 Guns 2 | . 2 . . Cannons 12 | . . 9 3 AOE 22 | . 16 6 . Classes Destroyed 12 | 2 5 5 . Builder 4 | . 4 . . Tunneler 1 | 1 . . . Hauler 1 | . 1 . . Recycler 2 | 1 1 . . Mechanic 1 | . 1 . . Turret 2 | . . 2 . Watcher 2 | . 2 . . Swarmer 4 | . . 4 . Grunt 22 | . 18 . 4 Artisan 2 | . . 2 . Subdweller 10 | . . 10 . Mutant 1 | . . 1 . Best Kill Streak 6 | 2 6 6 4 Combat Bots Only 5 | . 5 4 4 Max Kills in Single Turn 3 | 1 3 2 1 Gunslinging . | . . . . Exploded 2 | . 2 2 . Melee 1 | . . . 1 Uniques/NPCs Destroyed . | . . . . Combat | -11 -10 -10 -8 -------- Run | Yrd Mat Sub Mat Hostile Shots Fired 119 | . 24 62 33 Missed 35 | . 7 24 4 Hits 84 | . 17 38 29 Projectile 84 | . 17 38 29 Critical Strikes 1 | . . . 1 Damage Taken 1475 | . 252 615 608 Core 371 | . 59 107 205 Absorbed by Shields . | . . . . Regen/Repaired (Parts) 33 | . 33 . . Core Remaining (%) 87 | 100 . 75 . Volleys Fired 110 | 5 36 51 18 Largest 3 | 2 2 2 3 Hottest 240 | 40 60 160 240 Shots Fired 201 | 10 67 94 30 Gun 39 | 10 29 . . Cannon 105 | . . 75 30 Launcher 57 | . 38 19 . Special . | . . . . Kinetic 39 | 10 29 . . Thermal 105 | . . 75 30 Explosive 57 | . 38 19 . Electromagnetic . | . . . . Robot Hit Streak 17 | 2 7 17 6 Robot Miss Streak 2 | 1 2 2 2 Penetration Max . | . . . . Secondary Targets . | . . . . Shots Hit Robots 113 | 6 33 55 19 Core Hits 89 | 3 49 30 7 Critical Kills . | . . . . Critical Parts Destroyed . | . . . . Critical Strikes . | . . . . Melee Attacks . | . . . . Impact . | . . . . Slashing . | . . . . Piercing . | . . . . Sneak Attacks . | . . . . Combat Hostiles . | . . . . Follow-up Attacks . | . . . . Damage Inflicted 4121 | 60 1591 1914 556 Guns 284 | 60 224 . . Cannons 1710 | . . 1155 555 Explosions 2114 | . 1355 759 . Melee . | . . . . Ramming 13 | . 12 . 1 Kinetic 284 | 60 224 . . Thermal 1710 | . . 1155 555 Explosive 2114 | . 1355 759 . Electromagnetic . | . . . . Impact . | . . . . Slashing . | . . . . Piercing . | . . . . Highest Corruption . | . . . . Average Corruption . | . . . . Corruption Purged . | . . . . Corruption Blocked . | . . . . Overload Shots . | . . . . Overflow Damage 35 | . 23 12 . Projectiles . | . . . . Explosions 35 | . 23 12 . Melee . | . . . . Knockbacks . | . . . . Impact . | . . . . Kinetic . | . . . . Secondary . | . . . . Self-Inflicted Damage 96 | . 45 51 . Shots 7 | . 4 3 . Rammed 2 | . 2 . . Targets Rammed 3 | . 2 . 1 Kicked . | . . . . Crushed 1 | . . . 1 Highest Temperature 704 | . 27 273 704 Average Temperature 169 | . 11 84 386 Received Heat Transfer 542 | . 117 146 279 Effects 21 | . . . 21 Shutdowns 4 | . . . 4 Energy Bleed 1 | . . . 1 Interference 2 | . . . 2 Short Circuit 2 | . . . 2 Damage (major) 10 | . . . 10 Damage (core) 2 | . . . 2 Siege Activations . | . . . . Martial Activations . | . . . . Shielding Activations . | . . . . Robots Disrupted . | . . . . Combat Hostiles . | . . . . Robots Corrupted . | . . . . Combat Hostiles . | . . . . Parts Fried . | . . . . Impact Corruptions . | . . . . Robots Melted . | . . . . Combat Hostiles . | . . . . Parts Melted 2 | . . 2 . Heat Transferred 2257 | . . 1554 703 Parts Sabotaged . | . . . . Parts Stolen . | . . . . Parts Stripped . | . . . . Power Chain Reactions . | . . . . Alert | -11 -10 -10 -8 ------- Run | Yrd Mat Sub Mat Maximum Alert Level 1 | . 1 . . Low Security (%) 38 | 100 27 . 100 Level 1 61 | . 72 . . Level 2 . | . . . . Level 3 . | . . . . Level 4 . | . . . . Level 5 . | . . . . High Security . | . . . . Max Security . | . . . . Peak Influence 396 | 10 396 . 60 Initial . | . . . . Average 213 | 4 249 . 25 Influence Increases 1003 | 10 745 135 113 Destroy 0b10 Robot/C 560 | . 360 120 80 Destroy 0b10 Robot/NC 55 | 10 45 . . Destroy Leader 96 | . 86 . 10 Successful Hack 8 | . 8 . . Select Force Hacks 60 | . 60 . . Disable Machine 60 | . 45 . 15 Destroy Structure 149 | . 141 . 8 Lose Combat Pursuer 15 | . . 15 . Influence Decreases 990 | 10 413 467 100 Entered New Map 160 | . . 160 . Time Decay 730 | 10 403 267 50 Lost Part 100 | . 10 40 50 Squads Dispatched 7 | . 5 . 2 Investigation 4 | . 4 . . Extermination . | . . . . Reinforcement 3 | . 1 . 2 Assault . | . . . . Garrison . | . . . . Intercept . | . . . . Searches Triggered . | . . . . Construction Impeded . | . . . . Haulers Reinforced . | . . . . Active Scanning Responses . | . . . . Cargo Convoy Interrupts . | . . . . Stealth | -11 -10 -10 -8 --------- Run | Yrd Mat Sub Mat Distress Signals 3 | . 1 . 2 Communications Jammed . | . . . . Distress Signals . | . . . . Times Spotted 44 | . 20 16 8 Peak Tracking Total 6 | . 4 4 6 Tactical Retreats 1 | . . 1 . Traps | -11 -10 -10 -8 ------- Run | Yrd Mat Sub Mat Traps Triggered 2 | . 1 1 . Indirectly . | . . . . Trap Hack Attempts . | . . . . Triggered . | . . . . Disarmed . | . . . . Reprogrammed . | . . . . Reused . | . . . . Traps Extracted . | . . . . Installed . | . . . . Triggered . | . . . . Machines | -11 -10 -10 -8 ---------- Run | Yrd Mat Sub Mat Machines Disabled 9 | . 3 5 1 Max in Single Turn 3 | . 2 3 1 Machines Repaired . | . . . . Machines Dismantled . | . . . . Machines Sabotaged . | . . . . Overloaded Fab Kills . | . . . . Hacking | -11 -10 -10 -8 --------- Run | Yrd Mat Sub Mat Machines Accessed 6 | . 4 1 1 Terminals 1 | . 1 . . Fabricators . | . . . . Repair Stations 1 | . 1 . . Recycling Units 2 | . 2 . . Scanalyzers 1 | . . . 1 Garrison Access . | . . . . Total Hacks 10 | . 8 1 1 Successful 8 | . 6 1 1 Failed 1 | . 1 . . Catastrophic . | . . . . Database Lockouts 1 | . 1 . . Manual 6 | . 6 . . Terminals 3 | . 3 . . Fabricators . | . . . . Repair Stations 3 | . 3 . . Recycling Units 2 | . 2 . . Scanalyzers 1 | . . . 1 Garrison Access . | . . . . Terminal Hacks 3 | . 2 1 . Robot Analysis 2 | . 2 . . Proto ID Catalog 1 | . . 1 . Fabricator Hacks . | . . . . Repair Station Hacks 2 | . 2 . . Scan Component 1 | . 1 . . Repair 1 | . 1 . . Recycling Unit Hacks . | . . . . Scanalyzer 1 | . . . 1 Retrieve Study 1 | . . . 1 Garrison Access Hacks . | . . . . Unauthorized Hacks 2 | . 2 . . Terminals . | . . . . Fabricators . | . . . . Repair Stations . | . . . . Recycling Units 2 | . 2 . . Tunnel 2 | . 2 . . Scanalyzers . | . . . . Garrison Access . | . . . . Data Cores Recovered . | . . . . Used . | . . . . Hacking Detections 1 | . 1 . . Full Trace Events 1 | . 1 . . Feedback Events . | . . . . Feedback Blocked . | . . . . Robot Schematics Acquired . | . . . . Robots Built . | . . . . Authchips . | . . . . Time . | . . . . Total Robot Build Rating . | . . . . Part Schematics Acquired . | . . . . Parts Built . | . . . . Authchips . | . . . . Time . | . . . . Total Part Build Rating . | . . . . Part Studies Acquired 1 | . . . 1 Parts Repaired 1 | . 1 . . Time 26 | . 26 . . Parts Recycled . | . . . . Recycled Matter . | . . . . Retrieved Matter . | . . . . Retrieved Components . | . . . . Parts Scanalyzed . | . . . . Part Schematics Acquired . | . . . . Parts Damaged . | . . . . Bothacking | -11 -10 -10 -8 ------------ Run | Yrd Mat Sub Mat Used RIF Installer . | . . . . Robots Hacked . | . . . . Non-combat . | . . . . Combat . | . . . . Robot Hacks Applied . | . . . . Relay Couplers Released . | . . . . Fabnet Peak Effective % . | . . . . Robots Rewired . | . . . . Allies Hacked . | . . . . Hacks Repelled . | . . . . Allies | -11 -10 -10 -8 -------- Run | Yrd Mat Sub Mat Total Allies . | . . . . Largest Group . | . . . . Highest-Rated Group . | . . . . Highest-Rated Ally . | . . . . Total Orders . | . . . . Ally Attacks . | . . . . Total Damage . | . . . . Kills . | . . . . Allies Corrupted . | . . . . Allies Melted . | . . . . X0-1V1 Amusement Gains 50 | . 20 15 15 Average Entertainment 23 | . 20 23 21 Good Acts 5 | . . 5 . Bad Acts 8 | . . 4 4 Intel | -11 -10 -10 -8 ------- Run | Yrd Mat Sub Mat Active Infowar (turns) 125 | 8 117 . . Seismic 125 | 8 117 . . Robot Analysis Total 2 | . 2 . . Derelict Logs Recovered 2 | . . 2 . Drone Launches . | . . . . Drone Recoveries . | . . . . Exploration | -11 -10 -10 -8 ------------- Run | Yrd Mat Sub Mat Turns Passed 2849 | 29 1125 1514 181 Spaces Moved 1107 | 12 434 597 64 Core . | . . . . Treads 1095 | . 434 597 64 Legs 12 | 12 . . . Wheels . | . . . . Hover . | . . . . Flight . | . . . . Fastest Speed 120 | 120 160 160 160 Average Speed 169 | 120 160 177 165 Slowest Speed 240 | 120 160 240 240 Overloaded Moves . | . . . . Propulsion Burnouts . | . . . . Robots Hopped . | . . . . Potential Cave-ins . | . . . . Cave-ins Triggered . | . . . . Exploration Rate (%) 30 | 2 82 29 9 Regions Visited 3 Branch Regions 1 Pre-discovered Areas 4 | . 2 2 . Known Exits Taken 1 | . . 1 . Unknown Exits Taken 2 | 1 1 . . Scrap Searched 7 | . . 7 . Spaces Dug . | . . . . Terrain Destroyed 221 | . 164 50 7 Melee . | . . . . Projectile 11 | . . 4 7 AOE 210 | . 164 46 . Terrain Rammed . | . . . . Walls Destroyed . | . . . . Machines Disabled . | . . . . Actions | -11 -10 -10 -8 --------- Run | Yrd Mat Sub Mat Total 1882 | 17 798 959 108 Wait 586 | . 301 267 18 Move 1104 | 11 433 596 64 Hop . | . . . . Pick Up 19 | . 7 10 2 Fast Attach 8 | 1 1 5 1 Attach 9 | . 2 5 2 Detach 2 | . . 2 . Swap 14 | . 10 4 . Drop 23 | . 6 17 . Fire 110 | 5 36 51 18 Melee . | . . . . Ram 2 | . . . 2 Kick . | . . . . Crush 3 | . 2 . 1 Escape Stasis . | . . . . Rewire . | . . . . Trap . | . . . . Miscellaneous 2 | . . 2 . Route ------- -11/Scrapyard -10/Materials (discovered 4 exits: [*Mat x2] / [*Min] / *Sub) -10/Subcaves (discovered 4 exits: *Mat x2 / [*Rec] / [*Scr]) -8/Materials History --------- Turn | Location | Event 16 | -11/Scrapyard | Discovered new exit (range 3) 30 | -11/Scrapyard | Entered Materials 48 | -10/Materials | Central database locked down 254 | -10/Materials | Discovered new exit (range 4) 317 | -10/Materials | Build established: Mutant 404 | -10/Materials | Discovered new exit (range 16) 493 | -10/Materials | Discovered new exit (range 13) 964 | -10/Materials | Discovered new exit (range 11) 1084 | -10/Materials | Repaired Grenade Launcher 1151 | -10/Materials | Prayed at D.C.S.S. Altar Unit 1155 | -10/Materials | Entered Subcaves 1156 | -10/Subcaves | Approached by a straggling Scientist 1199 | -10/Subcaves | Scientist uncovered a shortcut to Scraptown 1219 | -10/Subcaves | Shifting Twisted Machinery released Sub. Beam Cannon 1231 | -10/Subcaves | Shifting Twisted Machinery released Sub. Beam Cannon 1234 | -10/Subcaves | Discovered new exit (range 11) 1364 | -10/Subcaves | Core integrity fell below 50% 1465 | -10/Subcaves | Learned location of Storage (-9) 1574 | -10/Subcaves | A Subdweller sparked back to life 1574 | -10/Subcaves | A Subdweller sparked back to life 1574 | -10/Subcaves | A Subdweller sparked back to life 1600 | -10/Subcaves | Found Prototype Device 1677 | -10/Subcaves | Discovered new exit (range 16) 1978 | -10/Subcaves | Visited 4L-MR0's lab 1987 | -10/Subcaves | Identified Power Bank 2005 | -10/Subcaves | Found Meta Core 2109 | -10/Subcaves | Build established: Subdweller-Mutant 2225 | -10/Subcaves | Core integrity restored by X0-1V1 (+52) 2275 | -10/Subcaves | Learned location of Zion (-7) 2275 | -10/Subcaves | Met a Zionite searching for "candidates" 2285 | -10/Subcaves | Shifting Twisted Machinery released Sub. Beam Cannon 2303 | -10/Subcaves | Ranged accuracy permanently improved by X0-1V1 (+7%; -70 max core) 2330 | -10/Subcaves | Identified exit to Materials 2330 | -10/Subcaves | X0-1V1 revealed exit location to -8/Materials 2669 | -10/Subcaves | Entered Materials 2669 | -8/Materials | Evolved 4 slots: Propulsion x1, Utility x1, Weapon x2 2850 | -8/Materials | Self-destructed Last Messages --------------- 02809_ G-47 Trooper destroyed. 02812_ Overheating: Energy bleed (-255). 02833_ X0-1V1: "The ol' switcheroo!" A-02 Transporter form resolidifies at new position. U-05 Engineer form resolidifies at new position. G-47 Trooper form resolidifies at new position. U-05 Engineer form resolidifies at new position. Form resolidifies at new position. G-47 Trooper form resolidifies at new position. U-05 Engineer form resolidifies at new position. 02836_ X0-1V1 wants to heat up the action around here (+265 heat). 02839_ Sub. Beam Cannon destroyed. 02840_ U-05 Engineer builds a Wall. 02843_ Broken Imp. Treads destroyed. 02844_ Critical hit (Burn: +37). 02845_ Lgt. Treads+ destroyed. 02846_ K-01 Serf collects debris. 02847_ U-05 Engineer builds a Wall. Map ----- +----------------------------------------------------+ | ?????????????????????????????????????????????????? | | ?????????????????????????????????????????????????? | | ?????????????????????????????????????????????????? | | ?????????????????????????????????????????????????? | | ?????????????????????????????????????????????????? | | ???????????????????????????? ##??????????????????? | | ??????????????????????????? ? ?????????????? | | ??????????????????????? ? ? ?????????????? | | ??????????????????????? ? ????????????? | | ?????????????????????? ? ? #????????????? | | ????????????????????#? ? ? #?###########? | | ????????????????????# """ """ #?# #? | | ????????????????????# """ """ #?# #? | | ????????????????????# """ """ #?# #? | | ??????????????# ????# #?# !!! #? | | ??????????????? ???# #?# !! #? | | ??????????? ???? k??# """ """ #?# ! #? | | ??????????? ###/### " """ """ #?# #? | | ????????????? """ """ ### #? | | ?????????????? " #######+#####? | | ?????????????? [% #?? | | ???????????????????##u #?? | | ???????????????????## g ####### ** #?? | | ????????????????????# u #????#####+######+####?? | | ????????????????????# rg#????# =%=#??"" ""???? | | ????????????????????# @#????# # """ """ ?? | | ????????????????????# #????# "" # """ """ #? | | ????????????????????# #????# """# #? | | ????????????????????# #????# S"# #? | | ??????????????????? ????# # #? | | ?????????????????? ????######## ?? | | ????????????????# ???????????? ?? | | ????????????????# #######????????????#########?? | | ????????????????# ?????????????????????????????? | | ????????????????# ??????????????????????????????? | | ????????????????# ??????????????????????????????? | | ???????????????? ???????????????????????????????? | | ???????????????? ????????????????????????????????? | | ?????????????????????????????????????????????????? | | ?????????????????????????????????????????????????? | | ?????????????????????????????????????????????????? | | ?????????????????????????????????????????????????? | | ?????????????????????????????????????????????????? | | ?????????????????????????????????????????????????? | | ?????????????????????????????????????????????????? | | ?????????????????????????????????????????????????? | | ?????????????????????????????????????????????????? | | ?????????????????????????????????????????????????? | | ?????????????????????????????????????????????????? | | ?????????????????????????????????????????????????? | +----------------------------------------------------+ Best States ------------- Heat Dissipation 31 Energy Generation 10 Energy Capacity 1250 Matter Stores 300 Matter Capacity 300 Sight Range 16 Terrain Scan Density 10 Armor Coverage 800 Evasion (%) 55 Recoil Reduction 3 Particle Charging 15 Item Schematics ----------------- None Robot Schematics ------------------ None Fabricated ------------ Nothing Repaired ---------- Grenade Launcher | 45% | -10/Materials Studied --------- Lgt. Treads | -8/Materials | Hacked Alien Tech Used ----------------- None Achievements -------------- None Challenges ------------ None Game ------ Seed ActuatorCatalystBeamcaster Manual? 0 Play Time 00:16:47 Cumulative 665.5 hours Start 2026.09.05 @ 02:41:44 End 2026.09.05 @ 02:57:05 Sessions 1 Manual Loads 0 Difficulty Rogue Special Mode None Game No. 593 Rogue 557 Adventurer 36 Explorer 0 Win Type - Total 8 Types 2/2/0/1/1/0/0/2/0/0 Lore% 86 Gallery% 75 Achievement% 69 Wizard Run 0 Options --------- Layout 1 ASCII 0 Keyboard 0 Movement Numpad Keybinds 0 Fullscreen 1 Font 48/Smallcaps Map View 50x35 Zoom Use 0% Tactical HUD 1 Map Filters NONE Filters NONE Steam 1 RUN: 9b0180ab-114d-47d3-9a01-8436f8c20089